Cogmind - Beta 16.1 @@@ ROGUE MODE // 2026.03.01 @ 17:25:50 Player: TacticsJustin Result: Destroyed by G-47 Trooper with Particle Gun Performance ------------- Evolutions (2) 1000 Regions Visited (5) 1000 Robots Destroyed (10) 50 Value Destroyed (403) 403 Prototype IDs (0) 0 Alien Tech Used (0) 0 Bonus (90) 90 TOTAL SCORE: 2543 Bonus ------- Follower Combat Kills 90 Cogmind --------- Core Integrity 0/550 Matter 238/300 Energy 100/100 System Corruption 0% Temperature Cool (18) Movement Walking (120) Location -8/Materials Parts ------- > --- POWER (2) -------- (None) > --- PROPULSION (3) --- Aluminum Leg > --- UTILITY (3) ------ (None) > --- WEAPON (3) ------- Great Maul > --- INVENTORY (5) ---- (None) Peak State ------------ > --- POWER ------------ Ion Engine Light Deuterium Engine > --- PROPULSION ------- Aluminum Leg Aluminum Leg Aluminum Leg > --- UTILITY ---------- Small Storage Unit High-capacity Battery Improved Terrain Scanner > --- WEAPON ----------- Shock Rifle Particle Gun Minigun > --- INVENTORY -------- Ion Engine Light Ion Engine Grenade Launcher [Rating: 20] Favorites ----------- Power Ion Engine Engine Ion Engine Propulsion Aluminum Leg Treads Armored Treads Leg Aluminum Leg Utility Small Storage Unit Device Improved Terrain Scanner Storage Small Storage Unit Weapon Light Cannon Energy Gun EM Pulse Gun Ballistic Gun Minigun Ballistic Cannon Light Cannon Launcher Grenade Launcher Impact Weapon Great Maul Build | -11 -10 -10 -10 -9 -8 ------- Run | Yrd Mat Min Exi Min Mat Slots Evolved 4 | . . . . . 4 Power 1 | . . . . . 1 Propulsion 1 | . . . . . 1 Utility 1 | . . . . . 1 Weapon 1 | . . . . . 1 Parts Attached 23 | 6 . 2 1 1 13 Power 4 | 1 . . . . 3 Engine 4 | 1 . . . . 3 Core . | . . . . . . Reactor . | . . . . . . Propulsion 7 | 2 . . . . 5 Treads 1 | . . . . . 1 Leg 6 | 2 . . . . 4 Wheel . | . . . . . . Hover . | . . . . . . Flight . | . . . . . . Utility 3 | 1 . . 1 . 1 Device 1 | . . . . . 1 Storage 2 | 1 . . 1 . . Processor . | . . . . . . Hackware . | . . . . . . Protection . | . . . . . . Artifact . | . . . . . . Weapon 9 | 2 . 2 . 1 4 Energy Gun 5 | 2 . . . 1 2 Energy Cannon . | . . . . . . Ballistic Gun 1 | . . . . . 1 Ballistic Cannon 1 | . . 1 . . . Launcher 1 | . . 1 . . . Special Weapon . | . . . . . . Impact Weapon 1 | . . . . . 1 Slashing Weapon . | . . . . . . Piercing Weapon . | . . . . . . Special Melee Weapon . | . . . . . . Unidentified Prototypes . | . . . . . . Parts Lost 17 | . . . . . 17 Power 4 | . . . . . 4 Propulsion 5 | . . . . . 5 Utility 3 | . . . . . 3 Weapon 5 | . . . . . 5 Highest Loss Streak 15 | . . . . . 15 To Critical Strikes . | . . . . . . Average Backups 4 | 2 2 5 6 6 1 Power 2 | 1 1 2 3 3 . Propulsion . | . . 1 1 1 . Utility . | . . . . . . Weapon 1 | . . 2 2 2 . Tool/Special . | . . . . . . Unused Backups 1 | . . . . 1 . Power 1 | . . . . 1 . Propulsion . | . . . . . . Utility . | . . . . . . Weapon . | . . . . . . Tool/Special . | . . . . . . Average Slot Usage (%) 85 | . 85 85 94 100 59 Engine 13 | . 14 14 14 14 10 Leg 25 | . 28 28 28 28 16 Storage 18 | . 14 14 22 28 11 Energy Gun 7 | . 28 9 . 6 10 Ballistic Cannon 8 | . . 9 14 14 . Launcher 7 | . . 9 14 7 . Peak Build Rating 20 | 6 6 6 7 8 20 Average Rating 7 | 2 6 6 6 7 10 On Entrance 5 | . 6 6 6 7 8 Avg Prop Armor Cover (%) 26 | . . . . . 26 Naked Turns . | . . . . . . Heaviest Build 28 | 14 14 16 20 20 28 Greatest Support 30 | 20 20 20 20 20 30 Greatest Overweight (x) 2 | 1 . . . . 2 Average Overweight (x) . | . . . . . . Largest Inventory Capacity 8 | 8 8 8 8 8 8 Average Capacity 7 | 7 8 8 8 8 7 Most Carried 7 | 6 5 6 7 7 6 Average Carried 4 | 3 2 5 6 6 1 Final Capacity 8 | 8 8 8 8 8 5 Final Carried 7 | 1 5 6 6 7 . Class Distribution -------------------- 89% | Mutant 6% | Skirmisher 3% | Scavenger-Gunner Dominant Class ---------------- Mutant | -10/Materials Mutant | -10/Mines Mutant | -10/Exiles Mutant | -9/Mines Mutant | -8/Materials Resources | -11 -10 -10 -10 -9 -8 ----------- Run | Yrd Mat Min Exi Min Mat Matter Collected 462 | 166 94 41 . 51 110 Remotely . | . . . . . . Salvage Created 349 | . . 23 . . 326 Parts 16 | . . 4 . . 12 Haulers Intercepted . | . . . . . . Recyclers Shooed . | . . . . . . Parts Field Recycled . | . . . . . . Retrieved Matter . | . . . . . . Parts Self-Destructed . | . . . . . . Prevented . | . . . . . . Parts Restored . | . . . . . . Kills | -11 -10 -10 -10 -9 -8 ------- Run | Yrd Mat Min Exi Min Mat Combat Hostiles Destroyed 8 | . . . . . 8 Melee 2 | . . . . . 2 Guns 3 | . . . . . 3 AOE 3 | . . . . . 3 Classes Destroyed 4 | . . 1 . . 3 Worker 1 | . . . . . 1 Builder 1 | . . 1 . . . Grunt 7 | . . . . . 7 Sentry 1 | . . . . . 1 Best Kill Streak 3 | . . 1 . . 3 Combat Bots Only 3 | . . . . . 3 Max Kills in Single Turn 1 | . . 1 . . 1 Gunslinging . | . . . . . . Exploded 1 | . . . . . 1 Melee 1 | . . . . . 1 Uniques/NPCs Destroyed . | . . . . . . Combat | -11 -10 -10 -10 -9 -8 -------- Run | Yrd Mat Min Exi Min Mat Hostile Shots Fired 152 | . . . . 2 150 Missed 42 | . . . . 2 40 Hits 110 | . . . . . 110 Projectile 110 | . . . . . 110 AOE 4 | . . 4 . . . Critical Strikes 6 | . . . . . 6 Damage Taken 2095 | . . 139 . . 1956 Core 618 | . . 55 . . 563 Absorbed by Shields . | . . . . . . Core Remaining (%) 89 | 100 . . . 78 . Volleys Fired 25 | . 1 3 . . 21 Largest 3 | . 2 2 . . 3 Hottest 140 | . 90 80 . . 140 Shots Fired 57 | . 2 6 . . 49 Gun 48 | . 2 1 . . 45 Cannon 3 | . . 3 . . . Launcher 6 | . . 2 . . 4 Special . | . . . . . . Kinetic 16 | . . 3 . . 13 Thermal 21 | . 1 1 . . 19 Explosive 6 | . . 2 . . 4 Electromagnetic 14 | . 1 . . . 13 Robot Hit Streak 12 | . 2 7 . . 12 Robot Miss Streak 2 | . . 1 . . 2 Penetration Max . | . . . . . . Secondary Targets . | . . . . . . Shots Hit Robots 50 | . 2 5 . . 43 Core Hits 20 | . 1 4 . . 15 Critical Kills 1 | . . . . . 1 Critical Parts Destroyed . | . . . . . . Critical Strikes 4 | . . . . . 4 Burn 2 | . . . . . 2 Corrupt 1 | . . . . . 1 Smash 1 | . . . . . 1 Melee Attacks 8 | . . . . . 8 Impact 8 | . . . . . 8 Slashing . | . . . . . . Piercing . | . . . . . . Sneak Attacks . | . . . . . . Combat Hostiles . | . . . . . . Follow-up Attacks . | . . . . . . Damage Inflicted 1392 | . 29 89 . . 1274 Guns 612 | . 29 12 . . 571 Cannons 35 | . . 35 . . . Explosions 448 | . . 42 . . 406 Melee 295 | . . . . . 295 Ramming 2 | . . . . . 2 Kinetic 236 | . . 35 . . 201 Thermal 376 | . 13 12 . . 351 Explosive 350 | . . 42 . . 308 Electromagnetic 133 | . 16 . . . 117 Impact 295 | . . . . . 295 Slashing . | . . . . . . Piercing . | . . . . . . Highest Corruption . | . . . . . . Average Corruption . | . . . . . . Corruption Purged . | . . . . . . Corruption Blocked . | . . . . . . Overload Shots . | . . . . . . Overflow Damage 42 | . . . . . 42 Projectiles . | . . . . . . Explosions 40 | . . . . . 40 Melee 2 | . . . . . 2 Knockbacks 3 | . . . . . 3 Impact 2 | . . . . . 2 Kinetic . | . . . . . . Secondary 1 | . . . . . 1 Self-Inflicted Damage 76 | . . . . . 76 Shots 3 | . . . . . 3 Rammed 1 | . . . . . 1 Targets Rammed 1 | . . . . . 1 Kicked . | . . . . . . Crushed . | . . . . . . Highest Temperature 713 | . 30 18 . . 713 Average Temperature 276 | . 18 12 . . 293 Received Heat Transfer 864 | . . . . . 864 Effects 26 | . . . . . 26 Shutdowns 7 | . . . . . 7 Energy Bleed 1 | . . . . . 1 Short Circuit 3 | . . . . . 3 Damage (minor) 1 | . . . . . 1 Damage (major) 12 | . . . . . 12 Damage (core) 2 | . . . . . 2 Siege Activations . | . . . . . . Martial Activations . | . . . . . . Shielding Activations . | . . . . . . Robots Disrupted . | . . . . . . Combat Hostiles . | . . . . . . Robots Corrupted . | . . . . . . Combat Hostiles . | . . . . . . Parts Fried 1 | . . . . . 1 Impact Corruptions 1 | . . . . . 1 Robots Melted . | . . . . . . Combat Hostiles . | . . . . . . Parts Melted . | . . . . . . Heat Transferred 864 | . 37 37 . . 790 Parts Sabotaged . | . . . . . . Parts Stolen . | . . . . . . Parts Stripped . | . . . . . . Power Chain Reactions . | . . . . . . Alert | -11 -10 -10 -10 -9 -8 ------- Run | Yrd Mat Min Exi Min Mat Maximum Alert Level . | . . . . . . Low Security (%) 100 | 100 100 100 . 100 100 Level 1 . | . . . . . . Level 2 . | . . . . . . Level 3 . | . . . . . . Level 4 . | . . . . . . Level 5 . | . . . . . . High Security . | . . . . . . Max Security . | . . . . . . Peak Influence 162 | . . 15 . 48 162 Initial 6 | . . . . . 6 Average 23 | . . 1 . 13 59 Influence Increases 519 | . . 15 . 98 406 Destroy 0b10 Robot/C 280 | . . . . 80 200 Destroy 0b10 Robot/NC 10 | . . 5 . . 5 Destroy Leader 50 | . . . . 10 40 Allied During Kill 11 | . . . . 8 3 Successful Hack 5 | . . . . . 5 Disable Machine 30 | . . . . . 30 Destroy Structure 58 | . . 10 . . 48 Lose Combat Pursuer 75 | . . . . . 75 Influence Decreases 433 | . . 15 . 80 338 Entered New Map 12 | . . . . . 12 Time Decay 191 | . . 15 . 40 136 Lost Part 170 | . . . . . 170 Lost Ally 60 | . . . . 40 20 Squads Dispatched 5 | . 1 . . . 4 Investigation . | . . . . . . Extermination . | . . . . . . Reinforcement 3 | . 1 . . . 2 Assault . | . . . . . . Garrison 2 | . . . . . 2 Intercept . | . . . . . . Searches Triggered . | . . . . . . Construction Impeded 1 | . . . . . 1 Haulers Reinforced . | . . . . . . Active Scanning Responses . | . . . . . . Cargo Convoy Interrupts . | . . . . . . Stealth | -11 -10 -10 -10 -9 -8 --------- Run | Yrd Mat Min Exi Min Mat Distress Signals 1 | . . . . . 1 Communications Jammed . | . . . . . . Distress Signals . | . . . . . . Times Spotted 23 | . 1 2 . 4 16 Peak Tracking Total 8 | . 1 1 . 4 8 Tactical Retreats 3 | . . . . . 3 Traps | -11 -10 -10 -10 -9 -8 ------- Run | Yrd Mat Min Exi Min Mat Traps Triggered 1 | . . . . . 1 Indirectly . | . . . . . . Trap Hack Attempts . | . . . . . . Triggered . | . . . . . . Disarmed . | . . . . . . Reprogrammed . | . . . . . . Reused . | . . . . . . Traps Extracted . | . . . . . . Installed . | . . . . . . Triggered . | . . . . . . Machines | -11 -10 -10 -10 -9 -8 ---------- Run | Yrd Mat Min Exi Min Mat Machines Disabled 2 | . . . . . 2 Max in Single Turn 1 | . . . . . 1 Machines Repaired . | . . . . . . Machines Dismantled . | . . . . . . Machines Sabotaged . | . . . . . . Overloaded Fab Kills . | . . . . . . Hacking | -11 -10 -10 -10 -9 -8 --------- Run | Yrd Mat Min Exi Min Mat Machines Accessed 4 | . 1 . 1 . 2 Terminals 3 | . 1 . . . 2 Fabricators . | . . . . . . Repair Stations . | . . . . . . Recycling Units . | . . . . . . Scanalyzers . | . . . . . . Garrison Access . | . . . . . . Total Hacks 26 | . 3 . 21 . 2 Successful 24 | . 1 . 21 . 2 Failed 2 | . 2 . . . . Catastrophic 2 | . 2 . . . . Database Lockouts . | . . . . . . Manual . | . . . . . . Terminals 5 | . 3 . . . 2 Fabricators . | . . . . . . Repair Stations . | . . . . . . Recycling Units . | . . . . . . Scanalyzers . | . . . . . . Garrison Access . | . . . . . . Terminal Hacks 24 | . 1 . 21 . 2 Record 23 | . 1 . 21 . 1 Zone Layout 1 | . . . . . 1 Fabricator Hacks . | . . . . . . Repair Station Hacks . | . . . . . . Recycling Unit Hacks . | . . . . . . Scanalyzer . | . . . . . . Garrison Access Hacks . | . . . . . . Unauthorized Hacks . | . . . . . . Terminals . | . . . . . . Fabricators . | . . . . . . Repair Stations . | . . . . . . Recycling Units . | . . . . . . Scanalyzers . | . . . . . . Garrison Access . | . . . . . . Data Cores Recovered . | . . . . . . Used . | . . . . . . Hacking Detections 2 | . 1 . . . 1 Full Trace Events 1 | . 1 . . . . Feedback Events . | . . . . . . Feedback Blocked . | . . . . . . Robot Schematics Acquired . | . . . . . . Robots Built . | . . . . . . Authchips . | . . . . . . Time . | . . . . . . Total Robot Build Rating . | . . . . . . Part Schematics Acquired . | . . . . . . Parts Built . | . . . . . . Authchips . | . . . . . . Time . | . . . . . . Total Part Build Rating . | . . . . . . Part Studies Acquired . | . . . . . . Parts Repaired . | . . . . . . Time . | . . . . . . Parts Recycled . | . . . . . . Recycled Matter . | . . . . . . Retrieved Matter . | . . . . . . Retrieved Components . | . . . . . . Parts Scanalyzed . | . . . . . . Part Schematics Acquired . | . . . . . . Parts Damaged . | . . . . . . Bothacking | -11 -10 -10 -10 -9 -8 ------------ Run | Yrd Mat Min Exi Min Mat Used RIF Installer . | . . . . . . Robots Hacked . | . . . . . . Non-combat . | . . . . . . Combat . | . . . . . . Robot Hacks Applied . | . . . . . . Relay Couplers Released . | . . . . . . Fabnet Peak Effective % . | . . . . . . Robots Rewired . | . . . . . . Allies Hacked . | . . . . . . Hacks Repelled . | . . . . . . Allies | -11 -10 -10 -10 -9 -8 -------- Run | Yrd Mat Min Exi Min Mat Total Allies 3 | . . . . 3 . Largest Group 3 | . . . . 3 1 Highest-Rated Group 40 | . . . . 40 16 Highest-Rated Ally 16 | . . . . 16 16 Total Orders . | . . . . . . Ally Attacks 27 | . . . . 18 9 Total Damage 266 | . . . . 155 111 Kills 6 | . . . . 4 2 Allies Corrupted . | . . . . . . Allies Melted . | . . . . . . Intel | -11 -10 -10 -10 -9 -8 ------- Run | Yrd Mat Min Exi Min Mat Active Infowar (turns) 89 | . . . . . 89 Terrain 89 | . . . . . 89 Robot Analysis Total . | . . . . . . Derelict Logs Recovered . | . . . . . . Drone Launches . | . . . . . . Drone Recoveries . | . . . . . . Exploration | -11 -10 -10 -10 -9 -8 ------------- Run | Yrd Mat Min Exi Min Mat Turns Passed 1430 | 92 119 189 506 218 306 Spaces Moved 1032 | 68 90 138 421 171 144 Core 68 | 55 . . . . 13 Treads 16 | . . . . . 16 Legs 948 | 13 90 138 421 171 115 Wheels . | . . . . . . Hover . | . . . . . . Flight . | . . . . . . Fastest Speed 50 | 50 120 120 120 120 100 Average Speed 119 | 88 120 120 120 120 129 Slowest Speed 190 | 120 120 120 120 120 190 Overloaded Moves . | . . . . . . Propulsion Burnouts . | . . . . . . Robots Hopped . | . . . . . . Potential Cave-ins . | . . . . . . Cave-ins Triggered . | . . . . . . Exploration Rate (%) 32 | 3 27 31 76 40 17 Regions Visited 5 Branch Regions 3 Pre-discovered Areas 1 | . . . 1 . . Known Exits Taken . | . . . . . . Unknown Exits Taken 5 | 1 1 1 1 1 . Scrap Searched . | . . . . . . Spaces Dug . | . . . . . . Terrain Destroyed 69 | . . 10 . . 59 Melee . | . . . . . . Projectile . | . . . . . . AOE 69 | . . 10 . . 59 Terrain Rammed . | . . . . . . Walls Destroyed . | . . . . . . Machines Disabled . | . . . . . . Actions | -11 -10 -10 -10 -9 -8 --------- Run | Yrd Mat Min Exi Min Mat Total 1168 | 99 99 154 422 184 210 Wait 52 | 20 5 10 . 7 10 Move 1027 | 67 89 137 420 170 144 Hop . | . . . . . . Pick Up 23 | 6 4 1 1 3 8 Fast Attach 1 | 1 . . . . . Attach 21 | 5 . . 1 . 15 Detach . | . . . . . . Swap 7 | . . 3 . 2 2 Drop 3 | . . . . 2 1 Fire 25 | . 1 3 . . 21 Melee 8 | . . . . . 8 Ram . | . . . . . . Kick . | . . . . . . Crush 1 | . . . . . 1 Escape Stasis . | . . . . . . Rewire . | . . . . . . Trap . | . . . . . . Miscellaneous . | . . . . . . Route ------- -11/Scrapyard -10/Materials -10/Mines -10/Exiles (discovered 2 exits: [*Min x2]) -9/Mines -8/Materials History --------- Turn | Location | Event 2 | -11/Scrapyard | Met Revision 17 18 | -11/Scrapyard | Discovered new exit (range 15) 93 | -11/Scrapyard | Entered Materials 136 | -10/Materials | Met 8R-AWN 201 | -10/Materials | Discovered new exit (range 9) 212 | -10/Materials | Entered Mines 213 | -10/Mines | Followed 8R-AWN into the Mines 224 | -10/Mines | Met a Derelict bent on vengeance 247 | -10/Mines | Assembled infested the area 317 | -10/Mines | Build established: Mutant 397 | -10/Mines | Discovered new exit (range 5) 401 | -10/Mines | Entered Exiles 424 | -10/Exiles | Discovered new exit (range 15) 439 | -10/Exiles | Welcomed by 8R-AWN 464 | -10/Exiles | Met EX-HEX 519 | -10/Exiles | Met EX-DEC 538 | -10/Exiles | Learned location of Zion (-6) 613 | -10/Exiles | Discovered new exit (range 14) 689 | -10/Exiles | Visited The Gauntlet 907 | -10/Exiles | Entered Mines 916 | -9/Mines | Assisted by bots powering up and referring to "LRC-V3" 1115 | -9/Mines | Discovered new exit (range 8) 1125 | -9/Mines | Entered Materials 1125 | -8/Materials | Accompanied by 1 ally 1125 | -8/Materials | Evolved 4 slots: Power x1, Propulsion x1, Utility x1, Weapon x1 1285 | -8/Materials | Garrison activated, responded to threat 1308 | -8/Materials | Core integrity fell below 50% 1332 | -8/Materials | Core integrity fell below 20% 1375 | -8/Materials | Lost 15 parts (4p3n3u5w) 1431 | -8/Materials | Destroyed by G-47 Trooper with Particle Gun Last Messages --------------- 01370_ Acquired Aluminum Leg. 01370_ Critical hit (Burn: +37). 01393_ Acquired Great Maul. [Achievement: Hydra] 01405_ G-47 Trooper knocked back. 01408_ Destroyed Aluminum Leg. 01408_ G-47 Trooper system corrupted by crushing effect. 01409_ G-47 Trooper misfires. 01411_ Critical hit (Burn: +37). 01411_ G-47 Trooper suffers critical hit (Smash). 01411_ G-47 Trooper destroyed. 01414_ Aluminum Leg destroyed. 01416_ Acquired Aluminum Leg. 01418_ Arm. Treads destroyed. 01422_ Y-45 Defender destroyed. 01428_ G-47 Trooper knocked back. 01428_ K-01 Serf collects debris. 01430_ Critical hit (Burn: +37). Map ----- +----------------------------------------------------+ | ?????????????????????????????????????????????????? | | ?????????????????????????????????????????????????? | | ?????????????????????????????????????????????????? | | ?????????????????????????????????????????????????? | | ?????????????????????????????????????????????????? | | ?????????????????????????????????????????????????? | | ?????????????????????????????????????????????????? | | ?????????????????????????????????????????????????? | | ?????????????????????????????????????????????????? | | ??????????#??????????????????????????????????????? | | ?????????????????????????????????????????????????? | | ??????????????#?#????????????????????????????????? | | ?????????????????????????????????????????????????? | | ?????????????????????????????????????????????????? | | ????"?????????? ?????????????????????????????????? | | #?????????????????????? ?????????????????????????? | | ?? ??"???????????????????????????????????????????? | | ????????#+###+#####??????????????????????????????? | | ????????# #??????????????????????????????? | | ????????# = "################???????????????? | | #######?# !== T## #???????????????? | | ###] !== "## #????+#???? #?? | | "[ ## != ##"" // """ #????%#???# #?? | | "G" ### ! ##"T =// """ #????*#???# #?? | | %" " ## ##"" !g/ """ #???#%##### #?? | | ## = ## g*@ #???#/#"""# # | | ## ""#########Y##g###########!#"T # # | | # /############ ##### % # " | | " k ^ # " | | ############+## ##### ^ [[[ !% # " | | #???# "" ##?######+### [[ " " + | | ????## " "" #??# # ^ [ ] """"" # | | ?#???# " "# #??# """"" # ^ = """"" # | | ?#???# " "# #??# """"" #] """"" ### | | #????# " "# ##?# """"" # ! """ | | ?????### ! # ### / | | ???????######## " + """"" # | | ??????????????# ### """"" #####"T"##T#####+#### | | ??????????????#####?# """"" #???######## | | ?????????????#??????# #??????????#"" """ | | ?????????????#???#??##########??????????#"T """ | | ???????????????#????????????????????????#"" ! """ | | ?????????????#??????????????????????????# """ | | ????????????????????????????????????????# """ | | ????????????????????????????????????????# | | ????????????????????????????????????????# | | ????????????????????????????????????????########## | | | | | | | +----------------------------------------------------+ Best States ------------- Heat Dissipation 31 Energy Generation 19 Energy Capacity 540 Matter Stores 300 Matter Capacity 300 Sight Range 16 Terrain Scan Range 16 Terrain Scan Density 10 Evasion (%) 55 Recoil Reduction 1 Item Schematics ----------------- None Robot Schematics ------------------ None Fabricated ------------ Nothing Repaired ---------- Nothing Studied --------- None Alien Tech Used ----------------- None Achievements -------------- Follow The Leader Hydra Librarian You Again Challenges ------------ None Game ------ Seed MicrodissipatorHackingBeacon Manual? 0 Play Time 00:26:48 Cumulative 13.4 hours Start 2026.03.01 @ 17:01:03 End 2026.03.01 @ 17:25:50 Sessions 1 Manual Loads 0 Difficulty Rogue Special Mode None Game No. 23 Rogue 23 Adventurer 0 Explorer 0 Win Type - Total 0 Types 0/0/0/0/0/0/0/0/0/0 Lore% 6 Gallery% 14 Achievement% 9 Wizard Run 0 Options --------- Layout 1 ASCII 0 Keyboard 0 Movement Mouse Keybinds 0 Fullscreen 2 Font 32/SmallcapsGlow Map View 50x35 Zoom Use 0% Tactical HUD 1 Map Filters NONE Filters NONE Steam 1 RUN: 2cafa8b6-c5fe-4983-a703-70e951747ef5